[Event "Danish-ch Masters 2022"]
[Site "Svendborg"]
[Date "2022.04.16"]
[Round "8.2"]
[White "Thybo, Jesper Sondergaard"]
[Black "Hoi, Carsten"]
[Result "1/2-1/2"]
[ECO "E91"]
[WhiteElo "2559"]
[BlackElo "2343"]
[Annotator "TA"]
[PlyCount "107"]
[EventDate "2022.04.10"]
[EventType "tourn"]
[EventCountry "DEN"]
[SourceTitle "playchess.com"]
[Source "ChessBase"]
[SourceQuality "1"]
[TimeControl "40/5400+30:1800+30"]

{[%evp 17,107,58,72,70,67,63,72,71,52,66,58,47,60,54,84,72,85,75,80,90,92,76,86,45,167,161,160,164,156,156,149,155,153,172,159,91,96,4,35,31,99,98,110,30,43,15,16,16,16,0,21,-149,-158,-1067,-1033,-862,-818,-785,-411,-418,-43,-60,0,-79,0,-120,-8,-9,0,0,0,-8,0,0,0,0,0,0,0,0,0,0,0,0,0,0,0,0,0,0,0,0]} 1. Nf3 {[%emt 0:00:05]} Nf6 {[%emt 0:01:12]} 2. c4 {[%emt 0:00:24]} g6 {[%emt 0:00:43]} 3. Nc3 {[%emt 0:00:58]} Bg7 {[%emt 0:00:20]} 4. d4 {[%emt 0:00:29]} O-O {[%emt 0:00:19]} 5. e4 {[%emt 0:00:08]} d6 {[%emt 0:00:09]} 6. Be2 {[%emt 0:00:20]} Bg4 {[%emt 0:00:52]} 7. Be3 {[%emt 0:01:36]} Nfd7 {[%emt 0:04:12]} 8. O-O {[%emt 0:02:27]} e5 {[%emt 0:03:29]} 9. d5 {[%emt 0:02:12]} a5 {[%emt 0:00:20]} 10. Rb1 {[%emt 0:01:54] &Bianco is more active. E91: King's Indian: Classical: 6 Be2, unusual replies including 6...c5 and 6...Bg4.} Na6 {[%emt 0:04:43]} 11. a3 {[%emt 0:01:56]} f5 {[%emt 0:02:38]} 12. h3 {[%emt 0:08:21] White is better.} Bxf3 {[%emt 0:04:42]} 13. Bxf3 {[%emt 0:00:13] [#]} Bf6 $146 {[%emt 0:02:30]} ({Predecessor:} 13... Nf6 14. b4 axb4 15. axb4 f4 16. Bd2 h5 17. Qe2 Qe8 18. c5 dxc5 19. bxc5 Nxc5 {0-1 (32) Prusikin,M (2470)-Forster,R (2495) Switzerland 2003}) 14. Bh6 {[%emt 0:14:33]} Bg7 {[%emt 0:02:23]} 15. Bd2 {[%emt 0:01:56]} Bf6 {[%emt 0:04:46]} 16. b4 $36 {[%emt 0:07:34][%mdl 2048] White is in control.} axb4 {[%emt 0:01:42]} 17. axb4 {[%emt 0:00:04]} Bg5 {[%emt 0:01:03]} 18. Be1 {[%emt 0:00:51]} Kh8 {[%emt 0:04:09]} 19. Be2 {[%emt 0:01:17]} Nf6 {[%emt 0:02:36][%cal Bd7f6,Bf6d5,Bd5f4][%mdl 32]} 20. Qc2 {[%emt 0:08:24]} c5 {[%emt 0:12:30]} (20... Nxe4 $14 21. Nxe4 fxe4) 21. dxc6 $1 $18 {[%emt 0:12:18]} bxc6 {[%emt 0:00:11]} 22. exf5 {[%emt 0:05:49]} gxf5 {[%emt 0:01:18]} 23. Qxf5 {[%emt 0:03:23]} Nd5 {[%emt 0:02:03]} 24. Qg4 {[%emt 0:01:45]} Nf4 {[%emt 0:02:37]} 25. Bd2 {[%emt 0:11:28]} Nc7 {[%emt 0:08:07]} 26. Ne4 {[%emt 0:09:42]} (26. b5 $142) 26... Bh6 $16 {[%emt 0:05:57]} 27. g3 {[%emt 0:02:00]} (27. Kh1 $1 $16) 27... Rg8 $11 {[%emt 0:07:06]} 28. Qf3 {[%emt 0:00:01] Threatens to win with Bc3.} Nce6 {[%emt 0:16:38]} (28... d5 $14 29. Bxf4 exf4 30. cxd5 cxd5) 29. Bxf4 $16 {[%emt 0:00:25]} Nxf4 {[%emt 0:00:21][%cal Be6f4,Bf4h3,Bh3f2][%mdl 32]} 30. Kh2 {[%emt 0:00:41]} ({White should try} 30. Kh1 $16 d5 31. gxf4 dxe4 32. Qxe4) 30... d5 $11 {[%emt 0:00:41]} 31. cxd5 {[%emt 0:00:28]} (31. gxf4 dxe4 32. Qxe4 Bxf4+ 33. Kh1 Ra3 $17) (31. Nc5 $5 {[%cal Rg3f4]} e4 32. Qb3 $14) 31... cxd5 {[%emt 0:00:04][%cal Od8c8] Hoping for ...Qc8!} 32. Nc5 {[%emt 0:01:26]} (32. gxf4 dxe4 33. Qh5 (33. Qxe4 $2 Bxf4+ 34. Qxf4 exf4 $19) 33... Bxf4+ 34. Kh1 Qb6 $15) 32... e4 {[%emt 0:01:20][%cal Be5e4,Be4e3][%mdl 32]} 33. Qe3 {[%emt 0:01:12] The board is on fire.} Qf6 {[%emt 0:01:27][%cal Oa8a2]} 34. Bg4 $2 {[%emt 0:00:36]} ({White has to play} 34. Qd2 $1 $11) 34... Nxh3 $1 $17 {[%emt 0:00:52]} 35. Qb3 {[%emt 0:00:18]} (35. Nd7 $17 Qg7 36. Qb6 Qxg4 37. Qxh6 Nxf2 38. Qf6+ Rg7 39. Qxf2 Rxd7 40. b5) 35... Nxf2 $19 {[%emt 0:00:36]} 36. Kg2 {[%emt 0:00:10]} e3 {[%emt 0:00:22]} 37. Qxd5 {[%emt 0:00:18]} Rad8 {[%emt 0:01:13]} 38. Qf5 {[%emt 0:00:42]} ({Much worse is} 38. Qe6 Qg7 39. Rxf2 exf2 $19) 38... Qxf5 {[%emt 0:02:15]} ({Don't blunder} 38... Qd6 $2 39. Rfd1 Nxd1 40. Rxd1 Qc6+ 41. Qe4 Rd2+ 42. Rxd2 Qxe4+ 43. Nxe4 $19) (38... Qe7 $19 39. Rxf2 (39. Qe6 $2 Qg7 $19) 39... Rdf8) 39. Bxf5 $15 {[%emt 0:00:01]} Rd2 {[%emt 0:00:35]} (39... Rdf8 $1 $15 40. Be6 Rg6) 40. Nb3 {[%emt 0:00:33] [#]} (40. Kf3 $1 $11) 40... Rdd8 {[%emt 0:00:42]} (40... Rd6 $1 $17 {[%cal Rd6f6] White must now prevent ...Rf6.} 41. Nc5 Rf6) 41. Nc1 {[%emt 0:09:54] [#]} (41. Nc5 $11 {keeps the balance.}) 41... Rge8 {[%emt 0:03:24]} ({Better is} 41... Rg5 $1 $17 {[%cal Rg5f5]} 42. Be6 Ne4) 42. Ne2 {[%emt 0:03:17] The position is equal.} Rd2 {[%emt 0:02:05]} 43. Rfe1 {[%emt 0:01:35]} Rf8 {[%emt 0:07:34]} 44. g4 {[%emt 0:05:09]} Nd3 {[%emt 0:02:01]} 45. Bxd3 {[%emt 0:01:23] aiming for Bf5.} Rf2+ {[%emt 0:00:17]} 46. Kh1 {[%emt 0:03:37]} Rxd3 {[%emt 0:00:32]} 47. b5 {[%emt 0:00:23] b6 is the strong threat.} Rd2 {[%emt 0:05:31]} 48. b6 $1 {[%emt 0:00:49] Strongly threatening b7.} Rdxe2 {[%emt 0:01:45]} 49. Rxe2 {[%emt 0:00:05]} Rxe2 $11 {[%emt 0:00:05] KRB-KR} 50. b7 $1 {[%emt 0:00:11]} Bf4 {[%emt 0:00:10] ( -> ...Bb8)} 51. b8=Q+ {[%emt 0:00:04]} Bxb8 {[%emt 0:00:09]} 52. Rxb8+ {[%emt 0:00:03]} Kg7 {[%emt 0:00:05]} 53. Kg1 {[%emt 0:00:16]} Kf6 {[%emt 0:03:55]} 54. Rb5 {[%emt 0:02:58] What a bad dream for Black.  Weighted Error Value: White=0.35/Black=0.51} 1/2-1/2

[Event "Danish-ch Masters 2022"]
[Site "Svendborg"]
[Date "2022.04.16"]
[Round "8.3"]
[White "Percivaldi, Martin"]
[Black "Moller Ochsner, Bjorn"]
[Result "0-1"]
[ECO "E81"]
[WhiteElo "2389"]
[BlackElo "2506"]
[Annotator "TA"]
[PlyCount "78"]
[EventDate "2022.04.10"]
[EventType "tourn"]
[EventCountry "DEN"]
[SourceTitle "playchess.com"]
[Source "ChessBase"]
[SourceQuality "1"]
[TimeControl "40/5400+30:1800+30"]

{[%evp 17,78,26,25,37,39,32,37,31,29,29,38,35,33,36,42,23,26,9,12,16,26,0,0,-33,-26,-36,-8,-104,-30,-172,-158,-229,-235,-329,-189,-196,-186,-195,-186,-188,0,-195,0,-195,-175,-685,-466,-424,0,-633,-678,-677,-648,-1012,-977,-29986,-29987,-29987,-29988,-29988,-29989,-29989,-29990]} 1. d4 {[%emt 0:00:15]} Nf6 {[%emt 0:00:13]} 2. c4 {[%emt 0:00:13]} g6 {[%emt 0:00:24]} 3. f3 {[%emt 0:01:13]} Bg7 {[%emt 0:00:23]} 4. e4 {[%emt 0:00:13]} d6 {[%emt 0:00:14]} 5. Nc3 {[%emt 0:00:23]} O-O {[%emt 0:00:19]} 6. Nge2 {[%emt 0:00:40]} c5 {[%emt 0:00:15]} 7. d5 {[%emt 0:00:13]} e6 {[%emt 0:00:25]} 8. Ng3 {[%emt 0:00:16]} exd5 {[%emt 0:00:49]} 9. cxd5 {[%emt 0:00:14]} h5 {[%emt 0:06:20]} 10. Bg5 {[%emt 0:00:13] A65: Modern Benoni: 6 e4.} a6 $1 {[%emt 0:00:48][%mdl 4] is now more promising than 10...Qb6.} 11. a4 {[%emt 0:01:57]} Qc7 {[%emt 0:00:55]} 12. Qd2 {[%emt 0:04:24] White is slightly better.} Nh7 {[%emt 0:02:47]} 13. Bh6 {[%emt 0:01:56]} h4 {[%emt 0:01:26]} 14. Bxg7 {[%emt 0:07:37]} Kxg7 {[%emt 0:00:35]} 15. Nge2 {[%emt 0:03:00]} Qe7 {[%emt 0:04:40]} 16. Nf4 {[%emt 0:07:58]} Nd7 {[%emt 0:01:48]} 17. Be2 {[%emt 0:01:51]} Ne5 {[%emt 0:04:09][%cal Oh4h3]} 18. O-O {[%emt 0:11:30] [#]} Bd7 $146 {[%emt 0:12:34]} ({Predecessor:} 18... f5 19. Rad1 Nf6 20. Ne6+ Bxe6 21. dxe6 Qxe6 22. Qxd6 Qxd6 23. Rxd6 fxe4 24. fxe4 Nfg4 {1-0 (49) Dreev,A (2658)-Gladyszev,O (2455) France 2007}) 19. Rab1 {[%emt 0:04:51]} Qg5 {[%emt 0:08:42]} 20. b4 {[%emt 0:09:15]} c4 {[%emt 0:06:07]} 21. Bd1 {[%emt 0:09:37]} Kg8 {[%emt 0:08:19][%cal Oe5d3]} 22. Bc2 {[%emt 0:09:25] [#] Against Nd3} (22. Qc1 $11 {remains equal.}) 22... b5 {[%emt 0:03:32]} (22... f5 $1 $17 {[%cal Rf5e4] aiming for ...fxe4.} 23. Rbd1 fxe4) 23. a5 {[%emt 0:02:37] [#]} (23. Qc1 $11) 23... f5 $1 $19 {[%emt 0:09:48] Hoping for ...fxe4.} 24. Nce2 {[%emt 0:08:45]} (24. Rbd1 $17 {was necessary.} fxe4 25. Ne6 Qxd2 26. Rxd2 exf3 27. Nxf8 Rxf8 28. Rdf2) 24... fxe4 {[%emt 0:10:21]} 25. fxe4 {[%emt 0:00:15]} Rf6 {[%emt 0:02:23]} (25... Rf7 $142 26. Rf2 Raf8) 26. Rf2 {[%emt 0:01:35]} Raf8 {[%emt 0:03:22] Strongly threatening ...Bg4.} 27. Rbf1 {[%emt 0:00:08]} Ng4 $36 {[%emt 0:02:39][%mdl 2048] Keeping White busy.} 28. Rf3 {[%emt 0:00:11]} Ne5 {[%emt 0:00:39]} 29. R3f2 {[%emt 0:00:09]} Ng4 {[%emt 0:03:25]} 30. Rf3 {[%emt 0:00:08]} Qh6 {[%emt 0:00:36]} ({Worse is} 30... Ne5 31. R3f2 $17) 31. Qd4 {[%emt 0:05:20]} (31. h3) 31... Ne5 {[%emt 0:02:12]} 32. R3f2 {[%emt 0:00:18]} Ng4 {[%emt 0:02:22]} ({Weaker is} 32... g5 33. Ne6 Rxf2 34. Rxf2 Bxe6 35. Rxf8+ Nxf8 36. dxe6 Qxe6 37. Qd2 $17) (32... h3 $142 33. g3 Ng4) 33. Rf3 {[%emt 0:00:05]} Ng5 {[%emt 0:00:58] Inhibits Ne6.} 34. Ra3 {[%emt 0:01:21]} Ne5 {[%emt 0:00:13] Threatens to win with ...Bg4.} 35. Qa7 {[%emt 0:02:59]} Bg4 {[%emt 0:00:42] White must now prevent ...Bxe2.} 36. Raa1 {[%emt 0:00:23]} Bxe2 {[%emt 0:00:46] Black mates.} 37. Nxe2 {[%emt 0:00:08] [#]} Nh3+ $1 {[%emt 0:00:26][%mdl 512]} 38. gxh3 {[%emt 0:00:17]} Qg5+ {[%emt 0:00:09]} 39. Ng3 {[%emt 0:00:08]} hxg3 {[%emt 0:00:51] Weighted Error Value: White=0.67/Black=0.37} 0-1

[Event "Danish-ch Masters 2022"]
[Site "Svendborg"]
[Date "2022.04.16"]
[Round "8.4"]
[White "Olsen, Filip Boe"]
[Black "Borge, Nikolaj"]
[Result "1/2-1/2"]
[ECO "D27"]
[WhiteElo "2386"]
[BlackElo "2392"]
[Annotator "TA"]
[PlyCount "97"]
[EventDate "2022.04.10"]
[EventType "tourn"]
[EventCountry "DEN"]
[SourceTitle "playchess.com"]
[Source "ChessBase"]
[SourceQuality "1"]
[TimeControl "40/5400+30:1800+30"]

{[%evp 18,97,13,11,51,34,46,31,47,3,0,0,0,0,0,-20,-18,-5,0,-63,-49,-52,-7,-41,-39,-28,-25,-37,-36,-45,-48,-41,-41,-45,-45,-62,-62,-61,0,-67,-64,-67,-57,-68,-63,-139,-146,-133,-56,-111,-104,-123,-131,-115,-59,-103,-61,-130,-122,-122,-125,-106,0,0,0,0,0,0,0,0,0,0,0,0,0,0,0,0,0,0,0,0]} 1. d4 {[%emt 0:00:04]} d5 {[%emt 0:00:15]} 2. c4 {[%emt 0:00:14]} dxc4 {[%emt 0:00:06]} 3. Nf3 {[%emt 0:00:14]} Nf6 {[%emt 0:00:11]} 4. e3 {[%emt 0:00:08]} e6 {[%emt 0:00:05]} 5. Bxc4 {[%emt 0:00:10]} c5 {[%emt 0:00:05]} 6. O-O {[%emt 0:00:18]} a6 {[%emt 0:00:09]} 7. a4 {[%emt 0:01:47]} Nc6 {[%emt 0:01:10]} 8. Nc3 {[%emt 0:02:21]} Be7 {[%emt 0:06:34]} 9. Qe2 {[%emt 0:01:04]} cxd4 {[%emt 0:02:48]} 10. Rd1 {[%emt 0:00:39][%cal Rf3d4]} d3 {[%emt 0:01:41] D27: Queen's Gambit Accepted: Classical main line: 7 e4!? and 7 a4.} 11. Bxd3 {[%emt 0:03:18]} Qc7 {[%emt 0:00:55]} 12. e4 {[%emt 0:05:08]} Ng4 {[%emt 0:18:39] White is slightly better.} 13. g3 {[%emt 0:07:21]} (13. h3 $5 {[%cal Rh3g4]} Nge5 14. Bf4 $14) 13... Bc5 $1 {[%emt 0:03:12]} 14. Rf1 {[%emt 0:01:41] [#]} f6 $146 {[%emt 0:19:45]} ({Predecessor:} 14... O-O 15. Bf4 e5 16. Nd5 Qd6 17. Bd2 Nf6 18. b4 Bd4 19. Nxf6+ Qxf6 20. Nxd4 Nxd4 {½-½ (34) Turova,I (2265)-Konopelchenkova,T (2165) Kolontaevo 1998}) 15. Kg2 {[%emt 0:09:11]} O-O {[%emt 0:02:06]} 16. h3 {[%emt 0:07:39]} Nge5 {[%emt 0:00:08]} 17. Nxe5 {[%emt 0:00:26]} Nd4 {[%emt 0:07:58]} 18. Qg4 {[%emt 0:03:43]} (18. Qd1 $11 fxe5 19. Ne2) 18... fxe5 $15 {[%emt 0:00:15]} 19. Be3 {[%emt 0:02:12]} Nb3 {[%emt 0:05:47]} 20. Rad1 {[%emt 0:02:02]} Bxe3 {[%emt 0:04:09]} 21. fxe3 {[%emt 0:00:21]} Bd7 {[%emt 0:00:38][%cal Bc8d7,Bd7e8,Be8g6][%mdl 32]} 22. Bc2 {[%emt 0:16:16]} Na5 {[%emt 0:05:03]} 23. Qe2 {[%emt 0:02:16]} Rxf1 {[%emt 0:02:08]} 24. Rxf1 {[%emt 0:01:22]} Qc5 {[%emt 0:05:17]} 25. Bd3 {[%emt 0:10:21]} Rc8 {[%emt 0:01:07]} 26. Qh5 {[%emt 0:03:14] Qf7+ is the strong threat.} Be8 {[%emt 0:01:01] Prevents Qf7+.} 27. Qg4 {[%emt 0:00:55]} Qe7 {[%emt 0:00:30]} ({Black should try} 27... Rc6 $15) 28. Qe2 {[%emt 0:04:36]} (28. Nd5 $1 $11 Qd6 29. b4) 28... Bg6 {[%emt 0:00:32]} 29. Bb1 {[%emt 0:02:56]} Nb3 {[%emt 0:01:47]} 30. Ba2 {[%emt 0:01:59]} Nc5 {[%emt 0:00:32]} 31. Qc4 {[%emt 0:02:12]} (31. h4 $15) 31... Rc6 $17 {[%emt 0:02:33][%cal Oc5e4,Bc8c6,Bc6b6,Bb6b2,Bb2d2][%mdl 32]} 32. Qb4 {[%emt 0:00:13]} b6 {[%emt 0:00:56]} (32... Qd8 $17 {Hoping for ...Qd2+.} 33. Rd1 Qg5 34. Bxe6+ Nxe6 35. Qxb7 Be8) 33. a5 {[%emt 0:00:28]} (33. Qc4 $15 a5 34. Bb1) 33... Qc7 {[%emt 0:02:57]} 34. axb6 {[%emt 0:06:31]} Rxb6 {[%emt 0:01:00]} ({Worse is} 34... Qxb6 35. Qa3 h6 36. Bb1) 35. Qc4 {[%emt 0:01:05] And now b4 would win.} Qc6 {[%emt 0:02:38]} (35... Rxb2+ $17 36. Kg1 h5) 36. Kg1 {[%emt 0:01:48]} h5 {[%emt 0:01:25]} ({Much weaker is} 36... Rxb2 $6 37. Na4 $1 Rxa2 38. Nxc5 $11) ({Reject} 36... Bxe4 $6 37. b4 Bd3 38. Qxc5 $11) (36... Nxe4 $2 37. Nd5 $1 {[%mdl 512]} exd5 38. Qxc6 Rxc6 39. Bxd5+ Bf7 40. Bxf7+ Kh8 41. Bd5 $18) 37. Rc1 {[%emt 0:02:08]} (37. Qe2 $15) 37... Rxb2 {[%emt 0:00:48] White must now prevent ...Qb6.} 38. Nd1 {[%emt 0:00:23][%csl LRb2,LRc5]} Rd2 {[%emt 0:00:28]} 39. Nf2 {[%emt 0:00:42] [#]} Qa4 {[%emt 0:01:00]} 40. Qxa4 $11 {[%emt 0:00:24] The position is equal.} Nxa4 {[%emt 0:00:07]} 41. Bxe6+ {[%emt 0:04:39]} Kf8 {[%emt 0:00:46]} 42. Rc6 {[%emt 0:02:00]} a5 {[%emt 0:16:18]} 43. Bd5 {[%emt 0:04:25]} Be8 {[%emt 0:02:11]} 44. Ra6 {[%emt 0:00:14]} Re2 {[%emt 0:01:09]} 45. Rxa5 {[%emt 0:01:42]} Rxe3 {[%emt 0:00:14]} 46. Kg2 {[%emt 0:00:35]} Nc3 {[%emt 0:02:49]} 47. Bc4 {[%emt 0:03:49]} Nxe4 {[%emt 0:01:31]} 48. Rxe5 {[%emt 0:00:15]} Bc6 {[%emt 0:00:39]} (48... Rxg3+ $2 49. Kh2 $18) 49. Nxe4 {[%emt 0:00:14] Weighted Error Value: White=0.16 (very precise) /Black=0.13 (very precise)} 1/2-1/2

[Event "Danish-ch Masters 2022"]
[Site "Svendborg"]
[Date "2022.04.16"]
[Round "8.5"]
[White "Schandorff, Lars"]
[Black "Sylvan, Jacob"]
[Result "1-0"]
[ECO "A06"]
[WhiteElo "2469"]
[BlackElo "2312"]
[Annotator "TA"]
[PlyCount "65"]
[EventDate "2022.04.10"]
[EventType "tourn"]
[EventCountry "DEN"]
[SourceTitle "playchess.com"]
[Source "ChessBase"]
[SourceQuality "1"]
[TimeControl "40/5400+30:1800+30"]

{[%evp 14,65,1,14,9,10,7,4,22,17,20,12,6,0,0,0,0,0,0,-18,-20,-46,9,22,46,58,52,45,121,110,151,103,149,9,161,165,402,401,375,287,267,93,127,118,192,195,636,635,623,593,822,787,994,731]} 1. Nf3 {[%emt 0:00:12]} d5 {[%emt 0:00:20]} 2. g3 {[%emt 0:00:06]} Nf6 {[%emt 0:00:27]} 3. Bg2 {[%emt 0:00:05]} e6 {[%emt 0:02:41]} 4. O-O {[%emt 0:00:33]} c5 {[%emt 0:01:50]} 5. c4 {[%emt 0:02:45]} d4 {[%emt 0:03:36]} 6. e3 {[%emt 0:01:56]} Nc6 {[%emt 0:01:13]} 7. exd4 {[%emt 0:00:31]} cxd4 {[%emt 0:00:08]} 8. d3 {[%emt 0:00:16]} Bd6 {[%emt 0:06:25] A13: English Opening: 1...e6.} 9. Bg5 {[%emt 0:05:30]} h6 {[%emt 0:02:30]} 10. Bxf6 {[%emt 0:00:16]} Qxf6 {[%emt 0:00:09] The position is equal.} 11. Nbd2 {[%emt 0:00:18]} Qe7 {[%emt 0:04:50]} 12. a3 {[%emt 0:05:47]} a5 $1 {[%emt 0:01:28][%cal Ba7a5,Ba5a4][%mdl 32] Prevents b4.} 13. Re1 {[%emt 0:05:42]} O-O {[%emt 0:02:23]} 14. Nb3 {[%emt 0:02:33] 14.Rc1 is the hot move.} Qf6 {[%emt 0:03:59]} 15. Nfd2 {[%emt 0:01:28][%cal Bf3d2,Bd2e4,Be4d6][%mdl 32]} Bc7 {[%emt 0:01:14]} 16. c5 {[%emt 0:15:08]} a4 {[%emt 0:11:25]} 17. Ne4 {[%emt 0:00:50] [#]} Qg6 $146 {[%emt 0:00:25]} (17... Qe7 $15 18. Nbd2 Bd7) ({Predecessor:} 17... Qe7 18. Nbd2 Bd7 19. Rc1 Ba5 20. Re2 Bxd2 21. Qxd2 Na5 22. Qb4 Bc6 23. Rcc2 Nb3 {½-½ (33) Khmelniker,I (2483)-Erenberg,A (2409) Israel 2019}) 18. Nbd2 $11 {[%emt 0:01:07]} e5 {[%emt 0:07:50]} 19. Nc4 {[%emt 0:01:16]} Bg4 {[%emt 0:00:30]} 20. Qc2 {[%emt 0:03:59]} f5 {[%emt 0:05:53]} (20... Bf5 $14) 21. Ned6 $16 {[%emt 0:00:43]} e4 {[%emt 0:00:14]} 22. dxe4 {[%emt 0:03:10]} ({White should try} 22. b4) 22... f4 {[%emt 0:00:49]} ({Better is} 22... Bxd6 23. cxd6 (23. Nxd6 f4 $16) 23... f4) 23. Qd2 {[%emt 0:09:00] &Bianco is more active.} ({White should play} 23. b4 $1 $16 {[%cal Rb4b5]}) 23... Qg5 $2 {[%emt 0:09:17]} (23... Bxd6 $11 {and Black has nothing to worry.} 24. cxd6 (24. Nxd6 Qg5 $11) 24... Ra6) 24. e5 $18 {[%emt 0:07:25]} (24. Nxb7 $6 Rab8 25. Nbd6 Qxc5 $11) 24... Ba5 $2 {[%emt 0:04:33]} (24... Be6 {was worth a try.}) 25. Nxa5 {[%emt 0:06:37] Pair of Knights!} fxg3 {[%emt 0:02:24] [#]} 26. f4 {[%emt 0:00:39]} Rxf4 {[%emt 0:05:37][%cal Of4f1] Strongly threatening ...Rf1+!} (26... gxh2+ 27. Kh1) 27. Nac4 $2 {[%emt 0:02:41]} (27. Ndxb7 Nxa5 28. Nxa5 (28. Bd5+ $2 Kh8 $19) 28... Rf1+ $1 29. Rxf1 Qxd2 $17) (27. Bd5+ $18 {and White stays clearly on top.} Kh7 28. Qd3+ g6 29. Qxg3 $1 Nxe5 30. h4 $1 (30. Ndxb7 d3 $11) (30. Naxb7 Raf8 $11)) 27... gxh2+ {[%emt 0:00:20]} 28. Kh1 {[%emt 0:04:19]} Raf8 {[%emt 0:00:49] [#]} (28... Be6 $16 {keeps fighting.} 29. Rf1 (29. Nxb7 Bxc4 30. Qc1 Nxe5 $11) 29... Raf8 30. Rxf4 (30. Nxb7 Rxf1+ 31. Rxf1 Rxf1+ 32. Kxh2 Qh4+) 30... Rxf4) 29. Ne4 $1 {[%emt 0:11:19]} (29. Nxb7 Qg6 30. Nba5 Nxa5 31. Qxa5 Be6 $17) 29... Qh4 {[%emt 0:01:51] [#]} (29... Qf5 30. Rf1 (30. Kxh2 $2 Bf3 $19) (30. Ned6 Qh5 $14) 30... Bf3 31. Rxf3 Rxf3 32. Bxf3 Qxf3+ 33. Qg2 Qxg2+ 34. Kxg2 Kf7 35. Ned6+ (35. Kxh2 Ke6 $18) 35... Ke6) 30. Nf6+ $1 {[%emt 0:02:10][%mdl 512] White is clearly winning.} R8xf6 {[%emt 0:09:08]} 31. exf6 {[%emt 0:00:08]} Rf2 {[%emt 0:00:24]} 32. f7+ {[%emt 0:00:33]} Kxf7 {[%emt 0:02:05] [#]} 33. Qxf2+ $3 {[%emt 0:00:55][%mdl 512] Weighted Error Value: White=0.29 (precise) /Black=0.57} 1-0